[Event "US Masters 2022"]
[Site "Charlotte"]
[Date "2022.11.27"]
[Round "8.9"]
[White "Burke, John M"]
[Black "Rahul Srivatshav P"]
[Result "1/2-1/2"]
[ECO "B45"]
[WhiteElo "2580"]
[BlackElo "2498"]
[Annotator "TA"]
[PlyCount "68"]
[EventDate "2022.11.23"]
[EventType "swiss"]
[EventCountry "USA"]
[SourceTitle "playchess.com"]
[Source "ChessBase"]
[SourceQuality "1"]
[TimeControl "5400+30"]

{[%evp 17,68,30,35,0,0,0,0,0,0,0,0,0,0,0,0,-49,-51,-64,-68,-64,-62,-67,-62,-66,-65,-77,-70,-79,-76,-83,-80,-84,-84,-139,-141,-138,-138,-165,-155,-150,-112,-116,-75,-77,-71,-123,-75,-46,-38,-40,-22,-23,0]} 1. e4 {[%emt 0:00:03]} c5 {[%emt 0:08:27]} 2. Nf3 {[%emt 0:00:07]} e6 {[%emt 0:00:36]} 3. d4 {[%emt 0:00:07]} cxd4 {[%emt 0:00:03]} 4. Nxd4 {[%emt 0:00:06]} Nc6 {[%emt 0:00:02]} 5. Nc3 {[%emt 0:00:06]} Nf6 {[%emt 0:00:06][%cal Bg8f6,Bf6d5,Bd5e3][%mdl 32]} 6. Nxc6 {[%emt 0:00:37]} bxc6 {[%emt 0:00:07]} 7. e5 {[%emt 0:00:04]} Nd5 {[%emt 0:00:05]} 8. Ne4 {[%emt 0:00:05]} Qc7 {[%emt 0:00:04]} 9. f4 {[%emt 0:00:07]} Qb6 {[%emt 0:00:03]} 10. a3 {[%emt 0:00:42] Against Qb4+. B45: Sicilian Four Knights.} (10. c4 {feels hotter.} Bb4+ 11. Ke2 f5 12. exf6 Nxf6 13. Be3) 10... a5 {[%emt 0:00:13]} 11. c4 {[%emt 0:01:55]} Ne3 {[%emt 0:01:30]} 12. Qd3 {[%emt 0:00:05] The position is equal.} Nxf1 {[%emt 0:00:05]} 13. Rxf1 {[%emt 0:00:05]} Ba6 {[%emt 0:00:03]} 14. b3 {[%emt 0:02:27]} Rb8 {[%emt 0:00:21]} 15. Rb1 {[%emt 0:01:16]} Be7 $1 {[%emt 0:03:52] [#]} 16. Qc3 $146 {[%emt 0:13:49]} (16. Ke2 $11) ({Predecessor:} 16. Bd2 f5 17. exf6 gxf6 18. Bc3 Rf8 19. Nd6+ Bxd6 20. Qxd6 Qe3+ 21. Kd1 Bxc4 22. Qxb8+ {0-1 (30) Shubin,K (2486)-Zemlyanskii,I (2240) Cheliabinsk 2022}) 16... c5 $15 {[%emt 0:12:52]} 17. Rb2 {[%emt 0:15:39]} Qc6 {[%emt 0:12:00]} 18. Nd6+ {[%emt 0:04:58]} Bxd6 {[%emt 0:00:52]} 19. exd6 {[%emt 0:00:04]} O-O {[%emt 0:08:26]} 20. Qxa5 {[%emt 0:04:34]} Qxd6 {[%emt 0:06:26]} 21. Qc3 {[%emt 0:13:18]} Qc6 {[%emt 0:08:24]} 22. Kf2 {[%emt 0:09:31]} d5 {[%emt 0:01:31][%cal Bd7d5,Bd5d4][%mdl 32]} 23. Rd1 {[%emt 0:00:08]} d4 {[%emt 0:06:18]} 24. Qf3 {[%emt 0:00:08]} Qd6 {[%emt 0:02:00]} 25. b4 {[%emt 0:08:31]} (25. Re1 $142) 25... Bxc4 $17 {[%emt 0:02:41]} 26. Qe4 {[%emt 0:00:24]} Rbd8 {[%emt 0:10:57]} 27. bxc5 {[%emt 0:02:00]} Qxc5 {[%emt 0:01:42]} 28. Rb4 {[%emt 0:00:36]} Rd7 {[%emt 0:02:50]} 29. Bb2 {[%emt 0:03:04][%cal Rb2d4]} Rfd8 {[%emt 0:01:01][%cal Bf8d8,Bd8b8,Bb8b4][%mdl 32]} 30. Qe5 {[%emt 0:01:18] Against f6} Bd5 {[%emt 0:03:10]} 31. Rbxd4 {[%emt 0:05:18]} (31. Rc1 $142 Qa5 32. Rxd4) 31... f6 {[%emt 0:00:20]} ({Better is} 31... Rb7 32. Qe2 h6) 32. Qe3 {[%emt 0:01:09]} Rb8 {[%emt 0:00:51]} 33. Rb4 {[%emt 0:01:31]} Qxe3+ {[%emt 0:01:33]} 34. Kxe3 {[%emt 0:00:04]} Rxb4 {[%emt 0:03:23] Weighted Error Value: White=0.12 (very precise) /Black=0.08 (flawless)} 1/2-1/2

[Event "US Masters 2022"]
[Site "Charlotte"]
[Date "2022.11.27"]
[Round "8.10"]
[White "Gazik, Viktor"]
[Black "Chandra, Akshat"]
[Result "1/2-1/2"]
[ECO "C47"]
[WhiteElo "2564"]
[BlackElo "2472"]
[Annotator "TA"]
[PlyCount "61"]
[EventDate "2022.11.23"]
[EventType "swiss"]
[EventCountry "USA"]
[SourceTitle "playchess.com"]
[Source "ChessBase"]
[SourceQuality "1"]
[TimeControl "5400+30"]

{[%evp 16,61,9,0,0,0,0,0,4,4,4,0,0,0,0,5,1,2,1,2,1,3,2,0,0,0,0,0,2,0,6,0,0,0,0,0,0,0,0,0,0,0,0,0,0,0,0,0]} 1. e4 {[%emt 0:00:05]} e5 {[%emt 0:09:29]} 2. Nf3 {[%emt 0:01:10]} Nc6 {[%emt 0:00:10]} 3. Nc3 {[%emt 0:00:55]} Nf6 {[%emt 0:00:09]} 4. d4 {[%emt 0:00:29]} exd4 {[%emt 0:00:05]} 5. Nxd4 {[%emt 0:00:03]} Bb4 {[%emt 0:00:06]} 6. Nxc6 {[%emt 0:00:05]} bxc6 {[%emt 0:00:03]} 7. Bd3 {[%emt 0:00:06][%cal Bf1d3,Bd3e4,Be4c6][%mdl 32]} d5 {[%emt 0:03:18]} 8. Bd2 {[%emt 0:00:08]} O-O {[%emt 0:00:57]} 9. O-O {[%emt 0:04:51] The position is equal.} Bxc3 {[%emt 0:02:07] C47: Scotch Four Knights and Four Knights with 4 g3.} 10. Bxc3 {[%emt 0:00:16]} dxe4 $1 {[%emt 0:00:06][%mdl 4] now scores much better than the old 10...Nxe4.} 11. Bxf6 {[%emt 0:12:52][%mdl 64] [#] Remove Defender} (11. Bc4 {is more complex.} Bf5 12. Re1 Qd6 13. Qd4) 11... Qxf6 {[%emt 0:00:04]} 12. Bxe4 {[%emt 0:00:06]} Qxb2 {[%emt 0:00:28]} 13. Bxc6 {[%emt 0:00:06]} Rb8 {[%emt 0:02:30]} 14. Rb1 {[%emt 0:01:18]} Qxb1 {[%emt 0:00:12]} 15. Qxb1 {[%emt 0:00:04]} Rxb1 {[%emt 0:00:04]} 16. Rxb1 $11 {[%emt 0:00:03][%mdl 4096] Endgame KRB-KRB} Rd8 {[%emt 0:02:45]} 17. Bf3 {[%emt 0:00:05]} Kf8 {[%emt 0:13:00]} 18. Rb8 {[%emt 0:05:29]} Re8 {[%emt 0:02:37][%cal Re8e1] [#]} 19. h3 {[%emt 0:04:19]} Ba6 {[%emt 0:00:37] [#]} 20. Rb3 $146 {[%emt 0:04:52]} ({Predecessor:} 20. Rb4 Re5 21. Ra4 Be2 22. Ba8 a5 23. g4 Rc5 24. Be4 Bd1 25. Kg2 g6 26. Ra3 Bxc2 27. Bxc2 Rxc2 28. Rxa5 {½-½ (58) Andreikin,D (2724)-Csonka,B (2474) Chess.com INT 2022}) 20... Be2 {[%emt 0:03:58]} 21. Bd5 {[%emt 0:21:06]} Rd8 {[%emt 0:05:28]} 22. Be4 {[%emt 0:02:45][%cal Ob3b7]} Bc4 {[%emt 0:12:06]} 23. Rc3 {[%emt 0:07:34]} Rd1+ {[%emt 0:02:46]} 24. Kh2 {[%emt 0:00:18]} Rd4 {[%emt 0:00:06]} 25. f3 {[%emt 0:02:35]} ({But not} 25. Bxh7 g6 26. Ra3 Bd5 27. Bxg6 (27. Rxa7 $2 Rc4 $19) 27... fxg6 $19) 25... Bd5 {[%emt 0:15:10]} 26. Bxd5 {[%emt 0:08:57]} ({Reject} 26. Bxh7 g6 27. Rxc7 Ra4 $17) 26... Rxd5 {[%emt 0:00:05]} 27. Rxc7 {[%emt 0:00:06]} Ra5 {[%emt 0:00:02]} 28. Kg3 {[%emt 0:00:17]} Rxa2 {[%emt 0:00:05]} 29. Kf4 {[%emt 0:00:05]} a5 {[%emt 0:03:26]} 30. g4 {[%emt 0:07:14]} a4 {[%emt 0:00:48]} 31. Ra7 {[%emt 0:17:41] An even fight not without its subleties.   Weighted Error Value: White=0.01 (flawless) /Black=0.00 (flawless)} 1/2-1/2

[Event "US Masters 2022"]
[Site "Charlotte"]
[Date "2022.11.27"]
[Round "8.11"]
[White "Schitco, Ivan"]
[Black "Escalante Ramirez, Brian Sebasti"]
[Result "1-0"]
[ECO "A13"]
[WhiteElo "2532"]
[BlackElo "2468"]
[Annotator "TA"]
[PlyCount "73"]
[EventDate "2022.11.23"]
[EventType "swiss"]
[EventCountry "USA"]
[SourceTitle "playchess.com"]
[Source "ChessBase"]
[SourceQuality "1"]
[TimeControl "5400+30"]

{[%evp 17,73,36,39,52,42,40,44,40,37,31,59,14,93,82,268,270,255,248,253,283,266,206,203,205,613,399,400,411,403,387,614,349,339,344,332,348,329,167,172,141,131,91,89,85,87,91,85,33,95,0,0,0,282,278,808,801,791,736]} 1. c4 {[%emt 0:01:01]} e6 {[%emt 0:10:19]} 2. g3 {[%emt 0:01:07]} Nf6 {[%emt 0:00:23]} 3. Bg2 {[%emt 0:00:15]} d5 {[%emt 0:02:52]} 4. Nf3 {[%emt 0:00:47]} Nbd7 {[%emt 0:05:00]} 5. b3 {[%emt 0:04:01]} dxc4 {[%emt 0:02:24]} 6. bxc4 {[%emt 0:00:21]} e5 {[%emt 0:00:02]} 7. Bb2 {[%emt 0:08:56]} Bd6 {[%emt 0:00:04]} 8. Nc3 {[%emt 0:02:38]} c6 {[%emt 0:00:59]} 9. O-O {[%emt 0:05:59]} O-O {[%emt 0:04:37]} 10. Qc2 {[%emt 0:01:07] A13: English Opening: 1...e6.} Re8 {[%emt 0:01:23]} 11. e3 {[%emt 0:05:31][%cal Be2e3,Be3d4,Bd4d5,Bd5c6][%mdl 32]} Qa5 {[%emt 0:10:36]} 12. d4 {[%emt 0:08:22] White is slightly better.} exd4 {[%emt 0:02:31]} 13. exd4 {[%emt 0:00:40]} Nf8 {[%emt 0:00:02] [#]} 14. d5 $146 {[%emt 0:06:57]} (14. c5 $5 {[%cal Rc5d6]} Bc7 15. Nd2 $14) ({Predecessor:} 14. c5 Be7 15. Rfe1 h6 16. Rab1 Be6 17. Bc1 Bc8 18. Ne5 Qc7 19. Bf4 Ne6 20. Nxc6 Nxf4 21. Nxe7+ Rxe7 22. Rxe7 Qxe7 23. gxf4 {1-0 (28) Aponte Castillo,J (2057)-Cardozo,S (1826) La Dorada 2016}) 14... Qb4 {[%emt 0:18:37]} (14... cxd5 $11 15. Nxd5 Nxd5 16. cxd5 Bd7) 15. dxc6 {[%emt 0:13:32]} Qxc4 {[%emt 0:01:47]} (15... bxc6 $16 {is a better defense.} 16. Na4 Bd7) 16. Nd2 $1 $18 {[%emt 0:03:36][%csl LRb7,LRc4]} Qa6 {[%emt 0:00:30]} 17. Nce4 {[%emt 0:02:57]} Nxe4 {[%emt 0:02:04]} 18. Nxe4 {[%emt 0:00:14]} (18. Bxe4 $6 bxc6 19. Qxc6 Rxe4 20. Qxe4 Rb8 $16) 18... Be7 {[%emt 0:00:02]} 19. Nc5 {[%emt 0:02:47]} Bxc5 {[%emt 0:01:11]} 20. Qxc5 {[%emt 0:00:05]} b6 $2 {[%emt 0:08:11]} (20... bxc6 21. Qxc6 Qxc6 22. Bxc6 Bd7) 21. Qg5 {[%emt 0:02:33][%csl Gb2][%cal Rg5g7]} Ng6 {[%emt 0:01:41]} 22. Rfe1 {[%emt 0:03:47]} Be6 {[%emt 0:00:38]} 23. Qd2 {[%emt 0:01:05]} Nf8 {[%emt 0:03:13]} (23... Rac8 $142 24. c7 b5) 24. Re3 {[%emt 0:05:13] Strongly threatening Qc3.} Rac8 {[%emt 0:13:33]} 25. Qd4 {[%emt 0:01:56][%csl Gb2][%cal Rd4g7]} f6 {[%emt 0:00:14]} 26. Ra3 {[%emt 0:01:59]} Qe2 {[%emt 0:02:46]} 27. Rxa7 {[%emt 0:04:14]} (27. Bf3 $142 Qb5 28. Rxa7) 27... Rcd8 {[%emt 0:01:16] [#]} 28. Rxg7+ $3 $40 {[%emt 0:06:22][%mdl 640] White goes for the king.} Kh8 {[%emt 0:00:02][%cal Od8d4]} 29. Bf1 {[%emt 0:01:05]} (29. Qxf6 Rd1+ 30. Rxd1 Qxd1+ 31. Bf1 Qxf1+ $3 {[%mdl 512]} 32. Kxf1 Bh3+ 33. Kg1 Re1#) 29... Qxf1+ {[%emt 0:00:52][%mdl 64]} 30. Rxf1 {[%emt 0:00:04] The board is on fire.} Rxd4 {[%emt 0:00:03]} 31. Rb7 {[%emt 0:01:25]} Rg4 {[%emt 0:00:01]} 32. Re1 {[%emt 0:01:15] White has more active pieces.} ({Don't take} 32. Bxf6+ Kg8 $14) (32. Rxb6 $6 Rc4 $11) (32. f3 $16 Rg6 33. Re1 (33. Rxb6 Kg8 $14)) 32... Rc8 {[%emt 0:04:23]} (32... Kg8 $1 $14) 33. Bxf6+ {[%emt 0:02:09]} (33. f3 $16 Rg6 34. c7) 33... Kg8 $11 {[%emt 0:00:00]} 34. c7 {[%emt 0:00:38][%cal Oe1e6]} Rg6 $2 {[%emt 0:03:30][%mdl 8192] [#]} (34... Kf7 $11) 35. Rxe6 $1 $18 {[%emt 0:01:21][%cal Be1e6,Be6d6,Bd6d8][%mdl 96]} Kf7 $2 {[%emt 0:01:38]} (35... Nxe6 $2 36. Rb8 Nxc7 37. Rxc8+ Kf7 38. Rxc7+ $18) (35... Rxc7 36. Rxc7 (36. Rb8 Rf7 $11) 36... Nxe6) 36. Rd6 {[%emt 0:00:20] Rd8 is the strong threat.} Rxf6 {[%emt 0:00:34]} 37. Rd8 {[%emt 0:00:06] Weighted Error Value: White=0.48/Black=0.64} ({Inferior is} 37. Rbxb6 Rxd6 38. Rxd6 Rxc7 $11) 1-0

[Event "US Masters 2022"]
[Site "Charlotte"]
[Date "2022.11.27"]
[Round "8.12"]
[White "Korley, Kassa"]
[Black "Druska, Juraj"]
[Result "1-0"]
[ECO "D05"]
[WhiteElo "2451"]
[BlackElo "2511"]
[Annotator "TA"]
[PlyCount "99"]
[EventDate "2022.11.23"]
[EventType "swiss"]
[EventCountry "USA"]
[SourceTitle "playchess.com"]
[Source "ChessBase"]
[SourceQuality "1"]
[TimeControl "5400+30"]

{[%evp 16,99,2,0,0,-7,20,7,45,41,46,43,47,46,41,44,57,47,47,54,67,30,30,39,49,48,50,43,52,23,25,23,24,11,13,16,22,18,20,0,23,13,14,11,13,12,10,6,22,0,22,21,20,0,9,0,34,0,0,0,0,0,0,0,0,0,0,0,0,0,74,67,1251,1247,1093,1064,1690,981,1495,970,877,874,29985,29986,29990,29991]} 1. Nf3 {[%emt 0:00:03]} e6 {[%emt 0:01:18]} 2. b3 {[%emt 0:00:52]} d5 {[%emt 0:00:23]} 3. Bb2 {[%emt 0:00:18]} c5 {[%emt 0:00:06]} 4. e3 {[%emt 0:00:04]} Nc6 {[%emt 0:00:04]} 5. Be2 {[%emt 0:02:28]} Nf6 {[%emt 0:01:25]} 6. O-O {[%emt 0:00:07]} Be7 {[%emt 0:04:59]} 7. d4 {[%emt 0:00:34]} cxd4 {[%emt 0:05:20]} 8. Nxd4 {[%emt 0:00:04]} O-O {[%emt 0:00:21]} 9. Nd2 {[%emt 0:11:14]} Nxd4 {[%emt 0:09:51] D05: Colle System with ...e6.} 10. Bxd4 {[%emt 0:00:05] [#]} Ba3 $146 {[%emt 0:00:09]} ({Predecessor:} 10... b6 11. c4 dxc4 12. Nxc4 Bb7 13. Bf3 Bxf3 14. Qxf3 Qd5 15. Qxd5 Nxd5 16. Rfd1 Rfd8 {1-0 (84) Sundui,C (1733)-Pimenov,D (1620) Playchess.com INT 2020}) 11. c4 {[%emt 0:01:48]} Qe7 {[%emt 0:03:06] The position is equal.} (11... Re8 $5 {[%cal Re6e5]}) 12. cxd5 {[%emt 0:04:30]} exd5 {[%emt 0:04:46]} (12... e5 13. Bxe5 $1 Nxd5 14. Nc4 $16) 13. Nb1 {[%emt 0:10:15][%cal Bd2b1,Bb1c3,Bc3b5][%mdl 32] Strongly threatening Nxa3.} Bd6 {[%emt 0:06:17]} 14. Nc3 {[%emt 0:00:04]} Rd8 {[%emt 0:00:32]} 15. Bf3 {[%emt 0:06:42]} (15. Rc1 {is interesting.} Ne4 16. Nb5 Bb8 17. Bd3) 15... Be6 {[%emt 0:10:47]} 16. Nb5 {[%emt 0:09:07]} Bb8 {[%emt 0:04:02]} 17. Rc1 {[%emt 0:00:18]} a6 {[%emt 0:14:29]} 18. Bc5 {[%emt 0:03:57] White is more active.} Qd7 {[%emt 0:00:45]} 19. Nd4 {[%emt 0:00:19]} Be5 {[%emt 0:00:15]} 20. Nxe6 {[%emt 0:01:52]} fxe6 {[%emt 0:00:48]} 21. Bd4 {[%emt 0:03:28] This pair of bishops is nice.} Qd6 {[%emt 0:00:18]} 22. Bxe5 {[%emt 0:10:50]} Qxe5 {[%emt 0:00:02]} 23. Qc2 {[%emt 0:00:05]} Rd7 {[%emt 0:00:19]} 24. Rfd1 {[%emt 0:01:47]} Rf8 {[%emt 0:01:37]} 25. h3 {[%emt 0:05:57]} Rdf7 {[%emt 0:00:40]} (25... g6 {simplifies} 26. Qc3 Qxc3 27. Rxc3 Rff7) 26. Rd2 {[%emt 0:00:59]} Nd7 {[%emt 0:08:14][%cal Bf6d7,Bd7e5,Be5c6,Bc6e7,Be7f5,Bf5d4][%mdl 32]} (26... g6 {simplifies} 27. Qd3 Rc7 28. Rxc7 Qxc7 29. Rc2 Qd6) 27. Qc7 {[%emt 0:07:01]} (27. Qc3 {simplifies} Qxc3 28. Rxc3 Nf6 29. g3) 27... Qf6 {[%emt 0:08:44] Hoping for ...Ne5.} 28. Qg3 {[%emt 0:02:37]} Ne5 {[%emt 0:00:23][%cal Re5f3]} 29. Bh5 {[%emt 0:00:40]} g6 {[%emt 0:00:24]} 30. f4 {[%emt 0:00:16]} (30. h4 {seems wilder.} Kh8 31. Bd1 Nc6 32. Qg5) 30... Nc6 {[%emt 0:01:16]} 31. Bf3 {[%emt 0:00:07]} Qe7 {[%emt 0:01:42]} 32. h4 {[%emt 0:04:03]} Qb4 {[%emt 0:00:51]} 33. Qe1 {[%emt 0:02:32]} Ne7 {[%emt 0:00:29]} 34. Rdc2 {[%emt 0:03:43]} Qb6 {[%emt 0:00:42]} 35. Rc5 {[%emt 0:01:33]} Nf5 {[%emt 0:00:43]} 36. Bg4 {[%emt 0:01:23]} d4 {[%emt 0:03:00]} 37. exd4 {[%emt 0:02:05]} Nxd4 {[%emt 0:00:02]} 38. g3 {[%emt 0:00:31]} h5 {[%emt 0:00:48]} 39. Qe4 {[%emt 0:00:36][%csl LRd4,LRg6]} Nf5 {[%emt 0:05:12]} 40. Bh3 {[%emt 0:00:09]} Rd8 {[%emt 0:00:55]} 41. Kh2 {[%emt 0:05:57]} Rd2+ {[%emt 0:03:03]} 42. Bg2 {[%emt 0:00:00]} Rxa2 {[%emt 0:00:03]} (42... Rfd7 $11 {keeps the balance.}) 43. Rc8+ $16 {[%emt 0:00:00]} Kh7 $2 {[%emt 0:00:02][%mdl 8192] This costs Black the game.} (43... Rf8 $14) 44. Qe5 $18 {[%emt 0:00:00][%csl Ge5][%cal Rc8h8]} Ng7 {[%emt 0:01:40] [#]} 45. Qb8 $1 {[%emt 0:00:00][%csl Gb8][%cal Rc8h8]} g5 {[%emt 0:00:10]} 46. Rh8+ {[%emt 0:00:46]} Kg6 {[%emt 0:00:01]} 47. hxg5 {[%emt 0:01:01]} ({Inferior is} 47. fxg5 Rxg2+ 48. Kxg2 Qf2+ 49. Kh1 Qf3+ 50. Kh2 Qf2+ 51. Kh3 Qf5+ 52. Kh2 Qf2+ 53. Kh3 Qf5+ 54. Kh2 Qf2+ $11) 47... Qf2 {[%emt 0:02:25] [#]} 48. Rg1 $1 {[%emt 0:00:13] Threatening mate with Qg8.} ({But not} 48. Rh6+ $2 Kf5 49. Rg1 Kg4 $19) 48... Re2 {[%emt 0:00:10]} 49. Qg8 {[%emt 0:00:55][%csl Gh8][%cal Rg8h7]} Kf5 {[%emt 0:00:50]} 50. Kh3 {[%emt 0:00:41] Weighted Error Value: White=0.08 (flawless) /Black=0.29 (precise)} 1-0

[Event "US Masters 2022"]
[Site "Charlotte"]
[Date "2022.11.27"]
[Round "8.13"]
[White "Caglar, Sila"]
[Black "Escobar Forero, Alder"]
[Result "0-1"]
[ECO "B22"]
[WhiteElo "2268"]
[BlackElo "2510"]
[Annotator "TA"]
[PlyCount "89"]
[EventDate "2022.11.23"]
[EventType "swiss"]
[EventCountry "USA"]
[SourceTitle "playchess.com"]
[Source "ChessBase"]
[SourceQuality "1"]
[TimeControl "5400+30"]

{[%evp 9,89,17,32,0,0,0,0,0,10,6,6,-5,-11,0,-1,-22,-15,-25,-16,-25,-21,-58,0,0,-6,0,-16,-36,-28,-32,-16,-81,-16,-27,-48,-33,0,0,0,0,0,-74,-23,-75,-14,-10,-18,-13,0,-22,0,-26,-25,-40,-40,-145,-40,-68,-40,-39,-11,-24,0,-39,-22,-39,-38,-101,-23,-99,-37,-35,29,31,28,36,170,164,171,171,1709,1076]} 1. e4 {[%emt 0:01:45]} c5 {[%emt 0:00:05]} 2. c3 {[%emt 0:00:04]} d5 {[%emt 0:00:06]} 3. exd5 {[%emt 0:00:16]} Qxd5 {[%emt 0:00:10]} 4. Nf3 {[%emt 0:00:11]} Nf6 {[%emt 0:00:09]} 5. Na3 {[%emt 0:00:09]} Qd8 {[%emt 0:00:26]} 6. Bc4 {[%emt 0:00:37] B22: Sicilian: 2 c3.} e6 {[%emt 0:00:12]} 7. O-O {[%emt 0:00:44]} Be7 {[%emt 0:00:09]} 8. Qe2 {[%emt 0:00:19] The position is equal.} O-O {[%emt 0:00:13] [#]} 9. Rd1 $146 {[%emt 0:00:07]} ({Predecessor:} 9. d4 cxd4 10. Rd1 Nc6 11. Nb5 a6 12. Nbxd4 Nxd4 13. Rxd4 Qe8 14. Bb3 Bd7 15. Ne5 {1-0 (59) Zelbel,P (2348)-Martin Fernandez,R (2141) Nuremberg 2009}) 9... a6 {[%emt 0:12:07]} 10. d4 {[%emt 0:00:08]} Qc7 {[%emt 0:00:10]} 11. dxc5 {[%emt 0:10:02]} (11. Bb3 {simplifies} b5 12. dxc5 Bxc5 13. Nc2) 11... Bxc5 {[%emt 0:00:17]} 12. Bg5 {[%emt 0:00:15]} Nbd7 $1 {[%emt 0:00:55]} 13. Nc2 {[%emt 0:02:57]} b5 {[%emt 0:06:36]} 14. Bd3 {[%emt 0:00:18]} Bb7 {[%emt 0:00:05]} 15. Ne3 {[%emt 0:20:25] Inhibits Ng4.} (15. Bh4 {simplifies} Bd6 16. Bg3 Bxg3 17. hxg3 Nc5 18. Ne3) 15... Ne5 {[%emt 0:13:21]} (15... h6 $15 16. Bxf6 Nxf6) 16. Nxe5 $11 {[%emt 0:03:04]} Qxe5 {[%emt 0:00:03]} 17. Bxf6 {[%emt 0:00:07]} gxf6 {[%emt 0:00:25]} 18. Qg4+ {[%emt 0:00:30]} Kh8 {[%emt 0:01:17]} 19. Qh4 {[%emt 0:00:10][%csl Gd3][%cal Rh4h7]} f5 {[%emt 0:00:34]} 20. Re1 {[%emt 0:02:42]} (20. Bf1 $1 $11) 20... Qg7 {[%emt 0:02:11]} (20... Rg8 $17 {Threatens to win with ...Rg7.} 21. Bf1 Rad8) 21. g3 {[%emt 0:03:08]} Rad8 {[%emt 0:01:58]} 22. Rad1 {[%emt 0:00:05]} Bf3 {[%emt 0:08:06]} (22... h6 $5 {[%cal Rg7g5]}) 23. Be2 {[%emt 0:00:04]} Rxd1 {[%emt 0:00:02] Really sharp!} 24. Bxd1 {[%emt 0:00:06]} Be4 {[%emt 0:01:49]} 25. Bb3 {[%emt 0:04:17]} (25. Nf1 $11) 25... Re8 {[%emt 0:08:09]} (25... a5 $17) 26. Qh5 {[%emt 0:02:00]} (26. Rd1 $11) 26... b4 {[%emt 0:09:27] Black is more active.} ({Better is} 26... Qg6 $17 27. Qh4 Kg7) 27. cxb4 {[%emt 0:03:02]} Bxb4 {[%emt 0:00:29]} 28. Rd1 {[%emt 0:01:20]} (28. Rf1 {is interesting.} Bc5 29. Nc4 Rd8 30. Qh4) 28... Qf6 {[%emt 0:18:43]} (28... Bc5 {feels hotter.} 29. Nc4 Bd5 30. Qe2 Rc8) 29. Rd7 {[%emt 0:09:12]} Be7 {[%emt 0:04:26]} (29... Re7 $5 {[%cal Re7d7]} 30. Rd1 (30. Rd8+ Kg7 $15) 30... Rc7 $11) 30. Nc4 {[%emt 0:11:56]} Rc8 {[%emt 0:03:28]} 31. f4 {[%emt 0:22:01]} Bc6 {[%emt 0:03:19]} 32. Rd2 {[%emt 0:00:05]} (32. Rd1 $1 $15) 32... Bb4 {[%emt 0:00:47]} (32... Bc5+ $1 $17 33. Kf1 Bb4) 33. Rd1 $1 $15 {[%emt 0:02:11]} Bc5+ {[%emt 0:00:48]} (33... Qe7 $5 {[%cal Rb4c5]} 34. Ne5 Be8 $15) 34. Kf1 {[%emt 0:00:02]} Bb5 {[%emt 0:03:06] A strong pair of Bishops.} 35. Kg2 $1 {[%emt 0:00:29]} Bc6+ {[%emt 0:00:29]} (35... Kg7 {seems wilder.} 36. Ne5 Ba7 37. a4 Bc6+) 36. Kf1 {[%emt 0:00:56]} Be8 {[%emt 0:01:27]} 37. Ne5 {[%emt 0:00:28]} Qe7 {[%emt 0:00:01]} 38. Qh6 {[%emt 0:01:20] [#]} (38. Qe2 $15) 38... a5 {[%emt 0:01:58]} (38... Qb7 $6 39. Qf6+ Kg8 40. Qg5+ Kh8 41. Qf6+ Kg8 42. Qg5+ Kh8 43. Qf6+ $11) ({Black should try} 38... Rd8 $1 $17 {Strongly threatening ...Rxd1+.} 39. Rxd8 Qxd8) 39. g4 {[%emt 0:01:30] [#]} (39. Kg2 $11 {keeps the balance.}) 39... a4 {[%emt 0:01:20]} (39... Bb5+ $1 $17 40. Bc4 Bxc4+ 41. Nxc4 Rd8) 40. Bc4 {[%emt 0:00:09]} Bd6 {[%emt 0:00:35]} (40... fxg4 $15 41. Rd7 Bxd7) 41. b3 $11 {[%emt 0:01:16][%cal Od1d6]} axb3 {[%emt 0:00:19]} 42. axb3 {[%emt 0:00:04][%cal Od1d6,Ba2b3,Bb3c4][%mdl 32] And now Rxd6! would win.} fxg4 {[%emt 0:00:34]} ({Don't play} 42... Bxe5 43. fxe5 Bc6 44. gxf5 $16) (42... Qf8 $14 43. Qxf8+ (43. Qf6+ Kg8 $11) 43... Bxf8) 43. Nxg4 $18 {[%emt 0:00:13] Threatening mate with Nf6.} f5 {[%emt 0:00:21]} 44. Rxd6 $1 {[%emt 0:00:20][%cal Og4e5] Black must now prevent Ne5!} Rxc4 $2 {[%emt 0:00:09]} (44... fxg4 45. Qxe6 (45. Rxe6 Qg7 $16) 45... Qxe6 46. Bxe6 Rc1+ 47. Kf2 Kg7 48. Bxg4 Rc2+ 49. Kg1 Bg6) 45. bxc4 {[%emt 0:00:13][%mdl 32768] Weighted Error Value: White=0.20 (precise) /Black=0.27 (precise) . Loss on time!?} ({Inferior is} 45. Qxe6 Qxe6 46. Rxe6 Rxf4+ 47. Nf2 Bf7 $15) 0-1